bitfinex/quotes_ETHUSD_20241223
["timestamp","ask_amount","ask_price","bid_price","bid_amount"]
[1734959835885,0.7754,3340.5,3339.8,2.99411]
[1734959836129,0.7754,3340.5,3339.9,0.73037988]
[1734959836532,0.7754,3340.5,3339.7,2.99425]
[1734959837091,0.7754,3340.5,3339.6,1.31536879]
[1734959837288,0.7754,3340.5,3340.0,2.994]
[1734959838135,0.7754,3340.5,3339.6,1.31536879]
[1734959838690,0.8326,3340.3,3339.5,8.98]
[1734959839009,0.8326,3340.3,3339.5,2.99444]
[1734959839888,0.8326,3340.3,3339.7,2.99424]
[1734959840431,0.8326,3340.3,3339.5,2.99443]
[1734959841843,2.99388,3340.2,3339.1,0.7733]
[1734959841993,0.8326,3340.0,3338.8,9.7533]
[1734959842199,0.8326,3340.0,3339.2,2.99472]
[1734959843341,0.8326,3340.0,3338.8,9.7533]
[1734959843642,0.8326,3340.0,3339.0,2.99488]
[1734959843805,0.8257,3339.9,3338.5,9.8011]
[1734959844010,0.8257,3339.7,3338.7,2.99513]
[1734959844536,0.8257,3339.3,3338.3,2.99551]
[1734959845406,0.15907491,3339.2,3338.1,2.18433485]
[1734959845643,0.15907491,3339.2,3338.4,2.99544]
[1734959846042,0.15907491,3339.2,3338.2,4.48916849]
[1734959846246,0.7943,3339.1,3338.2,1.49356849]
[1734959846451,0.95337491,3339.1,3338.3,2.99552]
[1734959846800,0.95337491,3339.1,3338.2,1.49356849]
[1734959847001,0.15907491,3339.0,3338.4,2.99539]
[1734959847196,0.15907491,3339.0,3338.4,3.44428585]
[1734959847542,0.15907491,3339.0,3338.8,2.99508]
[1734959847713,0.15907491,3338.9,3338.8,2.99508]
[1734959848301,0.7943,3339.3,3338.6,0.02994647]
[1734959848501,0.7943,3339.3,3338.9,2.99494]
[1734959848740,0.7943,3339.3,3339.0,0.299494]
[1734959849243,0.7943,3339.3,3339.0,3.294384]
[1734959849450,0.7943,3339.3,3339.0,0.299494]
[1734959849607,0.8149,3340.2,3339.2,2.99472]
[1734959850216,0.15955742,3340.1,3339.4,2.99453]
[1734959850457,0.15955742,3340.1,3339.1,2.99481]
[1734959850605,0.15955742,3340.1,3339.5,2.99441]
[1734959850954,0.15955742,3340.0,3339.5,2.99441]
[1734959851103,0.15955742,3340.0,3339.5,3.293851]
[1734959851538,0.15955742,3340.1,3339.5,3.293851]
[1734959852754,0.15955742,3340.0,3339.9,2.9941]
[1734959853219,0.8047,3340.6,3340.0,2.99398]
[1734959853414,0.8047,3340.6,3340.1,0.299398]
[1734959853622,0.15968283,3340.5,3340.0,2.99398]
[1734959854257,0.15968283,3340.4,3340.0,2.99398]
[1734959854810,0.8047,3340.6,3340.0,2.99398]
[1734959855359,0.8047,3340.6,3339.8,2.99419]
[1734959855512,0.8047,3340.6,3340.1,2.99384]
[1734959856149,0.15961816,3340.5,3339.9,2.99409]
[1734959856365,0.7831,3340.4,3339.8,8.98]
[1734959856567,0.7831,3340.4,3339.8,9.9079441]
[1734959856770,0.15961816,3340.3,3340.0,2.99401]
[1734959857579,0.7831,3340.7,3340.1,2.99388]
[1734959857728,0.7831,3340.7,3340.2,2.99379]
[1734959858367,0.7831,3340.7,3339.8,0.95787698]
[1734959858585,0.7831,3340.7,3340.0,2.99398]
[1734959858787,0.15959777,3340.6,3340.0,2.99398]
[1734959859150,0.15959777,3340.5,3340.0,2.99398]
[1734959859874,0.15959777,3340.4,3339.9,0.39137118]
[1734959860082,0.7831,3340.3,3339.4,8.98]
[1734959860485,0.94269777,3340.3,3339.5,0.02993705]
[1734959860983,0.7831,3340.3,3339.8,2.99411]
[1734959863464,0.7831,3340.3,3339.3,2.99457]
[1734959863989,0.7831,3340.3,3339.4,2.99451]
[1734959864293,0.1595182,3340.2,3339.4,3.293961]
[1734959864467,0.1595182,3340.2,3339.5,2.99438]
[1734959865087,0.7831,3340.3,3339.5,2.99438]
[1734959865981,0.7831,3340.3,3339.4,0.299451]
[1734959866152,0.15952561,3340.2,3339.5,8.98]
[1734959866360,0.15952561,3340.2,3339.8,2.9941]
[1734959866541,0.15952561,3340.2,3339.5,8.98]
[1734959866745,0.7831,3340.3,3339.5,8.98]
[1734959867172,0.8,3340.2,3339.5,8.98]
[1734959867522,0.8,3339.9,3339.5,8.98]
[1734959868173,0.15948461,3339.8,3339.5,8.98]
[1734959868781,0.15948461,3339.8,3338.6,9.7986]
[1734959868986,0.8,3339.7,3338.9,2.99498]
[1734959869190,0.8,3339.7,3338.7,1.54271307]
[1734959869348,0.8,3339.7,3339.0,2.9949]
[1734959869696,0.15945664,3339.6,3339.2,2.9947]
[1734959869846,0.15945664,3339.6,3338.9,2.99496]
[1734959870042,0.15945664,3339.6,3339.0,2.99487]
[1734959870255,0.15945664,3339.6,3338.9,0.45376731]
[1734959870487,0.8,3339.7,3339.1,2.99481]
[1734959870785,0.8,3339.7,3339.4,2.99446]
[1734959871141,0.8,3339.7,3339.6,2.99437]
[1734959871336,0.8001,3340.1,3339.6,3.293807]
[1734959872245,0.8001,3340.1,3339.6,2.99437]
[1734959872447,0.8001,3340.1,3339.1,11.97481]
[1734959872654,0.8001,3340.1,3339.8,2.99419]
[1734959873387,0.8001,3340.1,3339.4,2.9945]
[1734959873564,0.8001,3340.1,3339.9,2.99409]
[1734959875867,0.8196,3340.4,3340.1,2.9939]
[1734959876386,0.8196,3340.4,3339.9,0.299409]
[1734959876569,0.8196,3340.4,3339.9,2.99406]
[1734959876780,0.8196,3340.4,3340.0,2.99398]
[1734959877909,0.15969779,3340.3,3340.0,2.99398]
[1734959878828,0.8196,3340.4,3339.7,2.9942]
[1734959878981,0.8196,3340.4,3339.8,2.99417]
[1734959879165,0.8196,3340.4,3339.8,3.371747]
[1734959879366,0.8196,3340.4,3339.4,11.9745]
[1734959879367,0.8196,3340.4,3339.7,2.99424]
[1734959880012,0.7636,3340.2,3339.5,2.99444]
[1734959880228,0.7636,3340.2,3339.6,2.99435]
[1734959880397,0.15971127,3340.1,3339.6,2.99435]
[1734959880583,0.15971127,3340.1,3339.6,4.191785]
[1734959880783,0.15971127,3340.0,3339.6,1.197435]
[1734959881112,0.15971127,3340.0,3339.9,2.9941]
[1734959881472,0.8143,3340.5,3340.0,2.99397]
[1734959881985,0.15975032,3340.4,3340.0,2.99397]
[1734959882185,0.15975032,3340.4,3340.3,2.99374]
[1734959882386,0.8143,3340.8,3340.4,2.99364]
[1734959882713,0.8143,3340.8,3340.3,2.99365]
[1734959883008,0.15977574,3340.7,3340.1,2.99392]
[1734959883419,0.15977574,3340.7,3340.4,2.99357]
[1734959883584,0.8143,3340.8,3340.0,0.299397]
[1734959883784,0.8143,3340.8,3340.1,1.2273487]
[1734959883985,0.8143,3340.8,3340.3,2.99371]
[1734959885019,0.15972059,3340.7,3340.3,2.99371]
[1734959885521,0.15972059,3340.6,3340.4,2.99361]
[1734959886019,0.8143,3340.8,3340.4,2.99361]
[1734959886222,0.8143,3340.8,3340.4,0.42209587]
[1734959886519,0.7786,3341.1,3340.5,2.99356]
[1734959886691,0.7786,3341.1,3341.0,2.99311]
[1734959887521,1.86739155,3341.3,3341.2,2.99293]
[1734959887812,2.64599155,3341.7,3341.3,2.99284]
[1734959888183,0.15977131,3341.6,3341.3,2.99284]
[1734959888385,0.15977131,3341.6,3340.5,2.95713485]
[1734959888689,0.7501,3341.5,3340.6,1.19371349]
[1734959888895,0.7501,3341.3,3340.4,8.98]
[1734959889224,0.7501,3341.1,3340.4,8.98]
[1734959889514,0.7501,3341.1,3339.9,0.7728]
[1734959889515,0.7501,3340.8,3339.9,2.99409]
[1734959890165,0.90987131,3340.7,3339.7,2.99425]
[1734959890452,0.90987131,3340.7,3339.8,1.33582838]
[1734959890813,0.15977131,3340.6,3339.8,1.33582838]
[1734959891248,0.15977131,3340.6,3340.0,2.99395]
[1734959891563,0.7501,3340.7,3340.1,2.9939]
[1734959892054,0.7501,3340.7,3339.8,1.33582838]
[1734959892055,0.7501,3340.7,3339.9,2.99402]
[1734959892268,0.7501,3340.7,3339.9,3.72271832]
[1734959892470,0.15949308,3340.6,3340.0,2.99393]
[1734959892669,0.15949308,3340.6,3340.3,2.99374]
[1734959893156,0.7501,3340.7,3339.9,11.89303317]
[1734959893322,2.69609155,3341.0,3340.0,0.79003254]
[1734959893654,2.69609155,3341.0,3340.5,2.99349]
[1734959893869,0.8287,3341.0,3340.5,2.99349]
[1734959894216,0.8287,3341.0,3340.2,2.18433485]
[1734959894548,0.8287,3341.0,3340.6,2.99346]
[1734959895663,0.8214,3341.4,3340.6,0.8032]
[1734959895960,1.86739155,3341.5,3341.3,2.99281]
[1734959896131,2.48985541,3341.6,3341.1,2.18433485]
[1734959896132,1.86739155,3341.6,3341.1,2.18433485]
[1734959896815,1.86739155,3341.6,3341.4,2.99273]
[1734959897009,1.86739155,3342.1,3341.2,8.98]
[1734959897251,1.86739155,3342.1,3341.3,1.41573848]
[1734959897252,0.8222,3342.0,3341.3,1.41573848]
[1734959897453,0.98169868,3342.0,3341.4,2.99275]
[1734959897697,0.98169868,3342.0,3341.3,1.41573848]
[1734959898106,0.98169868,3342.0,3341.7,2.9924]
[1734959898393,0.8222,3342.0,3341.7,2.9924]
[1734959899090,0.8222,3342.0,3341.5,2.99258]
[1734959899295,0.8222,3342.0,3341.3,2.99281]
[1734959899499,0.8222,3342.0,3341.2,8.98]
[1734959899500,0.8222,3342.0,3341.4,1.41571449]
[1734959899648,0.8222,3342.0,3341.4,4.40843449]
[1734959900053,0.8222,3342.0,3341.4,1.41571449]
[1734959900290,0.8058,3342.4,3341.2,8.98]
[1734959900459,0.8058,3341.9,3340.9,8.98]
[1734959900666,0.96520035,3341.9,3341.2,2.9929]
[1734959900865,0.96520035,3341.9,3340.9,8.98]
[1734959901095,0.96520035,3341.9,3341.1,2.18433485]
[1734959901250,0.15940035,3341.8,3341.7,2.99248]
[1734959901657,0.92650035,3342.2,3341.4,2.18433485]
[1734959901853,0.92650035,3342.2,3341.8,2.99235]
[1734959902299,0.7671,3342.2,3341.8,2.99235]
[1734959902457,0.7671,3342.2,3341.8,4.189585]
[1734959902876,0.7671,3342.2,3341.8,1.197235]
[1734959903198,0.7671,3342.2,3341.5,8.98]
[1734959903399,0.7671,3342.2,3341.7,2.99247]
[1734959903712,0.7671,3342.2,3341.5,8.98]
[1734959904280,0.15938851,3342.1,3341.5,11.97265]
[1734959904503,0.15938851,3342.1,3341.6,1.197265]
[1734959904819,0.7671,3342.2,3341.6,1.197265]
[1734959905001,0.7671,3342.2,3342.0,2.99221]
[1734959905201,0.7546,3342.7,3342.0,2.99221]
[1734959905408,0.7546,3342.7,3342.1,2.99211]
[1734959905605,0.7546,3342.7,3342.1,2.48354585]
[1734959905929,0.7546,3342.7,3342.2,2.99202]
[1734959906686,0.7546,3343.0,3342.1,11.46354585]
[1734959906893,0.7546,3343.0,3342.4,2.99178]
[1734959907125,0.7546,3343.0,3342.5,0.299178]
[1734959907582,0.7546,3343.0,3342.6,0.02991222]
[1734959907783,0.7546,3343.7,3342.7,2.99151]
[1734959908387,0.15935083,3343.6,3342.7,2.99151]
[1734959908594,0.7546,3343.5,3342.5,3.290928]
[1734959908880,0.7546,3343.5,3342.6,1.52441629]
[1734959909391,4.85777155,3344.1,3342.1,0.299211]
[1734959909392,0.7546,3343.2,3342.1,0.299211]
[1734959909593,0.7546,3342.9,3341.7,11.97241]
[1734959909815,0.7546,3342.8,3341.7,11.97241]
[1734959910128,2.99153,3342.8,3341.7,8.98]
[1734959910277,0.98175083,3342.7,3341.7,8.98]
[1734959910481,0.8224,3342.5,3341.7,8.98]
[1734959910680,0.8224,3342.3,3341.2,5.17719485]
[1734959910927,0.8224,3342.3,3341.3,1.41571949]
[1734959911098,0.8224,3342.3,3341.3,4.40850949]
[1734959911929,0.15935083,3342.2,3341.3,4.40850949]
[1734959912125,0.15935083,3342.2,3341.3,1.41571949]
[1734959912422,0.15935083,3342.2,3341.4,0.02992047]
[1734959912737,0.8224,3342.3,3341.5,0.36299748]
[1734959912938,0.8224,3342.3,3341.3,1.41571949]
[1734959913087,0.758,3342.1,3341.3,1.41571949]
[1734959914238,0.7764,3341.9,3341.0,2.99309]
[1734959914549,0.7764,3341.9,3340.8,2.18433485]
[1734959914550,0.7764,3341.9,3341.2,2.99289]
[1734959915356,0.7764,3341.9,3341.3,0.02992423]
[1734959915632,0.7764,3341.9,3341.3,2.99284]
[1734959915791,0.7764,3341.9,3341.5,2.99266]
[1734959915997,0.7764,3341.9,3341.6,0.299266]
[1734959916740,0.7764,3341.9,3341.7,0.0299222]
[1734959917438,0.7872,3342.8,3341.7,2.9924]
[1734959918191,0.15940531,3342.7,3341.6,0.299266]
[1734959918521,0.15940531,3342.7,3341.8,2.99238]
[1734959918721,0.15940531,3342.6,3342.0,2.99221]
[1734959919659,0.15940531,3342.7,3341.9,0.3291646]
[1734959920093,0.7872,3342.8,3341.9,0.3291646]
[1734959920855,0.8016,3342.7,3341.9,0.3291646]
[1734959921155,1.18091,3342.7,3341.6,3.291806]
[1734959921701,0.1594852,3342.6,3341.7,2.99246]
[1734959921943,0.7678,3342.5,3341.3,8.98]
[1734959922145,0.9272852,3342.5,3341.4,0.02992281]
[1734959922349,0.9272852,3342.5,3341.6,2.99257]
[1734959922554,0.9272852,3342.5,3341.6,0.7512]
[1734959922766,0.9272852,3342.5,3341.8,2.99237]
[1734959922963,0.1594852,3342.4,3341.8,2.99237]
[1734959923765,0.1594852,3342.3,3341.8,2.99237]
[1734959923985,0.1594852,3342.3,3341.9,1.272357]
[1734959924462,0.1594852,3342.4,3341.9,1.272357]
[1734959925358,0.1594852,3342.3,3341.9,1.272357]
[1734959925941,0.1594852,3342.2,3341.9,1.272357]
[1734959926556,0.1594852,3342.4,3341.9,1.272357]
[1734959927122,0.1594852,3342.4,3342.0,0.4264747]
[1734959927321,0.1594852,3342.3,3342.0,0.4264747]
[1734959927799,0.1594852,3342.4,3342.0,0.4264747]
[1734959928066,0.8265,3342.3,3341.6,8.98]
[1734959928224,0.9859852,3342.3,3341.6,8.98]
[1734959928733,0.1594852,3342.2,3341.6,8.98]
[1734959929133,0.1594852,3342.2,3341.2,8.98]
[1734959929334,0.1594852,3342.1,3341.8,2.99235]
[1734959930064,0.1594852,3342.2,3341.5,2.99259]
[1734959930260,0.1594852,3342.2,3341.7,5.17680485]
[1734959931275,0.8265,3342.3,3341.7,5.17680485]
[1734959932365,0.15983461,3342.2,3341.7,2.18433485]
[1734959932664,0.15983461,3342.2,3341.8,1.49202849]
[1734959933069,0.8265,3342.3,3341.8,1.49202849]
[1734959933893,3.81847,3342.3,3341.6,8.98]
[1734959934266,0.15975428,3342.2,3341.6,8.98]
[1734959934466,3.75195,3342.1,3341.6,8.98]
[1734959935108,3.75195,3342.1,3340.8,0.15131063]
[1734959935109,0.7598,3341.8,3340.5,2.18433485]
[1734959935344,0.7598,3341.4,3340.4,0.59400955]
[1734959935609,2.99284,3341.3,3340.4,1.55335944]
[1734959935910,2.99284,3341.3,3340.0,8.98]
[1734959935911,0.7598,3341.0,3340.0,8.98]
[1734959936082,2.99324,3340.9,3340.0,8.98]
[1734959936277,0.7598,3341.0,3340.0,11.97398]
[1734959936886,0.15975428,3340.9,3340.0,11.97398]
[1734959937215,0.15975428,3340.9,3340.1,1.55352627]
[1734959937413,0.15975428,3340.8,3340.1,1.55352627]
[1734959937911,0.7598,3341.0,3340.1,1.55352627]
[1734959938293,0.15937685,3340.9,3340.2,5.20806638]
[1734959938497,0.15937685,3340.9,3340.2,2.21426638]
[1734959938820,0.15937685,3340.9,3340.4,2.99361]
[1734959939127,0.7598,3341.0,3340.3,1.27477927]
[1734959939266,0.7598,3341.0,3340.1,1.55352627]
[1734959939467,0.7672,3340.5,3339.4,8.98]
[1734959939700,0.7672,3340.4,3339.1,2.49679815]
[1734959939903,0.7672,3339.8,3339.1,2.49679815]
[1734959940263,0.7672,3340.1,3339.5,2.99445]
[1734959940468,0.15928327,3340.3,3339.6,2.99434]
[1734959940679,0.7807,3340.4,3339.7,0.59665748]
[1734959941506,0.7807,3340.4,3339.5,0.7879]
[1734959942102,0.15916836,3340.3,3339.5,0.7879]
[1734959942283,3.80626,3340.2,3339.1,2.18433485]
[1734959942493,3.80626,3340.2,3339.1,5.17905485]
[1734959942820,0.15916836,3340.1,3339.1,5.17905485]
[1734959943039,0.15916836,3340.1,3339.4,2.18433485]
[1734959943344,0.8124,3340.2,3339.6,2.99436]
[1734959943649,0.8124,3340.2,3339.4,5.17886485]
[1734959944052,0.8124,3340.2,3339.4,14.15886485]
[1734959944204,0.8124,3340.2,3339.5,0.02993729]
[1734959944396,0.8124,3340.2,3339.6,4.18934721]
[1734959945015,0.8124,3340.2,3339.6,4.2192845]
[1734959945337,0.8124,3340.2,3339.6,10.20494443]
[1734959945492,0.7824,3340.8,3340.0,2.99396]
[1734959945698,0.7824,3340.8,3340.1,3.293296]
[1734959946011,0.7824,3340.8,3340.1,0.299396]
[1734959946598,2.9934,3340.7,3340.1,0.299396]
[1734959946842,0.8093,3340.6,3339.7,8.98]
[1734959947413,0.8093,3340.6,3339.7,11.16433485]
[1734959947747,0.8093,3340.6,3340.0,2.18433485]
[1734959947897,2.9928,3341.4,3340.2,3.77081]
[1734959948097,1.86739155,3341.4,3340.4,2.99364]
[1734959948312,1.86739155,3341.4,3340.5,0.59849062]
[1734959948513,4.86017155,3341.4,3340.5,0.59849062]
[1734959948946,2.99278,3341.4,3340.5,0.59849062]
[1734959949254,2.99276,3341.4,3340.5,0.59849062]
[1734959949446,1.86739155,3342.0,3339.7,8.98]
[1734959949447,0.7984,3340.3,3339.7,8.98]
[1734959949644,2.99318,3341.0,3339.1,11.16433485]
[1734959949944,2.9941,3339.9,3339.1,8.98]
[1734959950147,0.8111,3340.0,3339.1,8.98]
[1734959950664,0.8111,3340.0,3339.1,11.9748]
[1734959950829,0.8111,3340.0,3339.2,1.33985977]
[1734959951229,0.8111,3340.0,3339.3,2.99462]
[1734959951718,0.8111,3340.0,3339.2,1.33985977]
[1734959952157,0.8111,3340.0,3339.2,4.33457977]
[1734959953167,0.8111,3340.0,3339.2,1.33985977]
[1734959953467,3.76667,3339.9,3339.0,8.98]
[1734959954284,0.7725,3339.9,3339.0,8.98]
[1734959955272,0.7725,3339.9,3339.0,11.9749]
[1734959955468,0.7725,3339.9,3339.0,8.98]
[1734959956170,0.7725,3339.9,3339.2,0.8148]
[1734959956338,0.7725,3339.9,3339.3,1.19791349]
[1734959956666,0.7725,3339.9,3339.4,2.99446]
[1734959956876,0.7651,3341.0,3339.4,2.18433485]
[1734959957038,0.7651,3341.0,3339.8,2.9941]
[1734959957245,0.7651,3340.5,3339.6,2.99434]
[1734959957439,0.7651,3340.5,3339.7,0.51786749]
[1734959958258,0.7651,3340.5,3339.8,0.02993561]
[1734959958464,0.7651,3340.5,3339.7,0.51786749]
[1734959959094,0.7651,3340.5,3339.9,2.99406]
[1734959959402,0.7651,3340.5,3340.0,3.02386352]
[1734959959592,0.7651,3340.5,3340.1,1.27874635]
[1734959960160,0.7716,3340.8,3340.1,4.27264635]
[1734959960360,0.7716,3340.8,3340.2,0.02993311]
[1734959960613,0.7716,3341.4,3340.8,2.99321]
[1734959960902,0.7716,3341.4,3340.9,2.99313]
[1734959961106,0.7716,3341.4,3341.0,1.197313]
[1734959961681,0.7716,3341.4,3341.0,4.190423]
[1734959961912,0.7716,3341.4,3341.0,1.197313]
[1734959963870,0.7716,3341.4,3341.0,4.190423]
[1734959964209,0.7716,3341.4,3341.0,1.197313]
[1734959964411,0.7716,3341.4,3341.1,1.0177313]
[1734959965283,0.7716,3341.4,3340.9,2.99314]
[1734959965480,0.7716,3341.4,3340.7,8.98]
[1734959965709,0.8245,3342.1,3341.1,2.993]
[1734959966224,0.8245,3342.1,3341.2,2.99284]
[1734959966387,0.8245,3342.1,3341.3,2.99281]
[1734959966581,0.8245,3342.1,3341.4,0.299281]
[1734959966784,0.8245,3342.1,3341.6,2.99257]
[1734959967098,0.15935208,3342.0,3341.6,2.99257]
[1734959967600,0.8245,3342.1,3341.6,2.99257]
[1734959968513,2.9916,3342.7,3341.7,2.99248]
[1734959968715,0.7601,3342.6,3341.8,4.30046648]
[1734959969012,0.7601,3342.6,3341.8,1.278188]
[1734959969329,0.7601,3342.6,3341.6,11.97255]
[1734959969815,0.7601,3342.6,3341.6,8.98]
[1734959969996,3.38175185,3343.2,3341.6,8.98]
[1734959969997,2.99186,3342.4,3341.6,8.98]
[1734959970203,0.7601,3342.3,3341.6,8.98]
[1734959970382,0.7601,3342.0,3341.1,2.99302]
[1734959970985,0.7601,3342.0,3340.9,8.98]
[1734959971193,2.99241,3341.8,3340.9,8.98]
[1734959971505,0.7601,3341.9,3340.9,8.98]
[1734959972115,0.7601,3341.9,3341.0,2.99311]
[1734959972315,0.7601,3341.9,3341.1,1.197311]
[1734959973427,0.7601,3341.9,3341.2,0.8094]
[1734959973626,0.7601,3342.5,3341.4,2.99275]
[1734959973921,0.7601,3342.5,3341.7,2.9924]
[1734959974087,0.7601,3342.5,3341.8,1.19724]
[1734959974698,0.7601,3342.5,3341.8,4.18961]
[1734959976234,0.7601,3342.5,3342.1,11.97211]
[1734959977478,0.7601,3342.5,3342.1,8.98]
[1734959977927,3.75195,3342.5,3342.1,8.98]
[1734959978090,2.99185,3342.5,3342.1,8.98]
[1734959978295,0.7615,3342.4,3342.1,8.98]
[1734959980177,0.7615,3342.4,3342.1,1.017724]
[1734959980378,0.7615,3342.4,3341.8,2.99238]
[1734959980626,0.7615,3342.4,3341.6,11.97255]
[1734959981425,0.7615,3342.4,3341.7,2.99248]
[1734959981718,0.7615,3342.4,3341.6,8.98]
[1734959982131,3.75337,3342.4,3341.6,8.98]
[1734959982280,0.7615,3342.4,3341.7,1.197273]
[1734959982481,3.75339,3342.4,3341.7,1.197273]
[1734959982927,0.7615,3342.4,3341.7,1.197273]
[1734959983931,0.8179,3342.2,3341.7,1.197273]
[1734959984221,0.8179,3342.2,3341.2,8.98]
[1734959984222,3.80996,3342.2,3341.2,8.98]
[1734959984423,3.80996,3342.2,3341.2,11.97293]
[1734959984643,0.8179,3342.2,3341.4,2.99273]
[1734959984801,0.15927004,3342.1,3341.4,2.99273]
[1734959985546,0.8179,3342.2,3341.4,2.99273]
[1734959985754,0.8179,3342.2,3341.5,1.197273]
[1734959986692,0.15951407,3342.1,3341.5,1.197273]
[1734959987410,0.15951407,3342.0,3341.5,1.197273]
[1734959987939,0.15951407,3342.1,3341.7,2.99243]
[1734959988238,0.15951407,3342.1,3341.5,1.197273]
[1734959988470,0.8179,3342.2,3341.6,0.33816079]
[1734959989447,0.8179,3342.2,3341.4,8.98]
[1734959989657,0.78,3341.9,3341.4,8.98]
[1734959990271,0.78,3341.9,3341.4,11.97273]
[1734959990575,0.15986479,3341.8,3341.2,8.98]
[1734959990741,0.15986479,3341.8,3341.1,1.197311]
[1734959990742,0.78,3341.7,3341.1,1.197311]
[1734959990931,0.78,3341.4,3340.8,8.98]
[1734959991126,0.78,3341.4,3339.9,3.77912]
[1734959991127,0.78,3341.6,3339.9,0.7851]
[1734959991357,0.7937,3340.7,3339.9,2.99404]
[1734959991925,0.15986479,3340.6,3339.9,2.99404]
[1734959992125,0.15986479,3340.6,3339.9,3.02397453]
[1734959992359,0.7937,3340.7,3340.0,2.99393]
[1734959992565,0.7937,3340.7,3340.1,1.41582649]
[1734959993284,0.7937,3340.7,3339.5,0.9814365]
[1734959993285,0.7937,3340.7,3339.2,0.8273]
[1734959993628,2.99428,3339.7,3339.1,8.98]
[1734959993828,0.7721,3339.6,3338.7,8.98]
[1734959994068,3.76647,3339.6,3338.7,8.98]
[1734959994447,3.76647,3339.6,3338.4,8.98]
[1734959994646,2.99463,3339.4,3338.5,1.11643348]
[1734959994846,0.7834,3339.3,3338.5,1.11643348]
[1734959995971,0.7834,3339.3,3338.6,3.02520594]
[1734959996534,0.7834,3339.3,3338.7,2.99516]
[1734959996983,0.7834,3339.3,3338.8,2.99507]
[1734959997150,0.7834,3339.3,3338.9,0.30250159]
[1734959997353,0.7834,3339.3,3338.6,2.99523]
[1734959998234,0.7834,3339.3,3338.8,2.99508]
[1734960000249,0.7834,3339.3,3339.0,2.99489]
[1734960000464,0.8165,3340.3,3339.2,2.99472]
[1734960000767,3.81026,3340.3,3339.2,2.99472]
[1734960001084,0.7931,3340.2,3339.3,0.299472]
[1734960001386,2.99337,3340.8,3338.6,8.98]
[1734960001387,2.99436,3339.7,3338.6,8.98]
[1734960001536,0.79151281,3339.6,3338.7,2.99515]
[1734960001940,0.79151281,3339.6,3338.8,2.99506]
[1734960002164,0.79151281,3339.6,3338.9,1.197506]
[1734960002481,0.79151281,3339.6,3338.9,2.026306]
[1734960002687,1.86739155,3340.6,3339.0,8.98]
[1734960002982,1.86739155,3340.6,3339.2,2.99465]
[1734960003187,2.81408812,3340.5,3339.0,8.98]
[1734960003355,2.99401,3340.1,3338.8,2.99503]
[1734960003684,2.99401,3340.1,3338.9,2.99495]
[1734960004385,2.99371,3340.4,3338.9,0.7931]
[1734960004581,2.99389,3340.2,3339.0,2.9949]
[1734960004883,0.7519,3339.9,3339.1,0.3788]
[1734960005197,0.7519,3339.9,3338.8,2.99503]
[1734960005336,0.7519,3339.9,3339.1,2.99473]
[1734960005689,0.7519,3339.9,3339.6,2.99436]
[1734960005853,0.8096,3340.2,3339.7,2.99424]
[1734960006053,0.8096,3340.2,3339.4,0.02993788]
[1734960006277,0.8096,3340.2,3339.9,2.9941]
[1734960006785,0.8096,3340.2,3339.7,2.99426]
[1734960007090,0.8096,3340.2,3339.3,11.97461]
[1734960007287,0.8096,3340.2,3339.5,2.99445]
[1734960007486,0.8096,3340.2,3339.6,2.99428]
[1734960007670,0.8096,3340.2,3339.7,3.293658]
[1734960007879,0.8096,3340.2,3339.7,0.299428]
[1734960008077,2.46567573,3341.5,3339.7,0.299428]
[1734960008078,0.7842,3341.0,3339.8,9.00993807]
[1734960008259,0.7842,3341.0,3340.1,2.99391]
[1734960008462,0.7842,3341.0,3339.8,11.9741]
[1734960008681,0.7632,3340.9,3339.8,8.98]
[1734960008997,2.99365,3340.4,3339.4,8.98]
[1734960009199,2.99327,3340.9,3339.0,2.81408812]
[1734960009200,0.7632,3340.8,3339.0,9.7376]
[1734960009348,0.7632,3340.1,3339.0,9.7376]
[1734960009712,0.7632,3340.1,3339.5,2.99443]
[1734960010214,0.7632,3340.1,3339.0,12.55168812]
[1734960010366,0.7632,3340.1,3339.6,2.99436]
[1734960010567,0.7632,3340.1,3339.7,0.299436]
[1734960011211,0.7632,3340.1,3339.2,8.98]
[1734960011417,2.99401,3340.0,3339.2,8.98]
[1734960011586,0.7893,3339.7,3338.7,11.97517]
[1734960012815,0.7893,3339.7,3338.8,2.99505]
[1734960013012,0.7893,3339.7,3338.7,8.98]
[1734960013182,3.78366,3339.7,3338.8,1.00964335]
[1734960013514,0.7659,3339.5,3338.8,1.00964335]
[1734960020620,0.7659,3339.5,3338.8,4.00470335]
[1734960021224,0.7659,3339.5,3338.8,1.00964335]
[1734960021432,0.1595561,3339.4,3338.8,4.00472335]
[1734960021721,0.1595561,3339.4,3338.9,4.29644683]
[1734960021904,0.7659,3339.5,3338.9,4.29644683]
[1734960022308,2.99366,3340.4,3339.2,2.9947]
[1734960022309,0.7904,3340.4,3339.2,2.9947]
[1734960022489,2.99401,3340.0,3339.0,0.7909]
[1734960022696,0.7904,3339.9,3339.1,2.99481]
[1734960023018,0.7904,3339.9,3339.2,1.40671768]
[1734960023214,0.7904,3339.9,3339.3,0.02994168]
[1734960023452,7.04611113,3340.8,3339.6,2.99435]
[1734960023453,0.15965842,3339.8,3339.6,2.99435]
[1734960023989,0.15965842,3340.1,3339.6,2.99435]
[1734960024189,0.15965842,3340.1,3339.5,0.7909]
[1734960024419,0.8275,3340.9,3340.3,2.99373]
[1734960024734,0.8275,3340.9,3340.4,2.99363]
[1734960025072,1.86739155,3341.2,3340.1,0.8222]
[1734960025073,0.15978604,3340.8,3340.3,8.98]
[1734960025519,0.15978604,3340.8,3340.5,2.99355]
[1734960025720,0.15978604,3340.7,3340.3,11.97374]
[1734960025879,0.15978604,3340.7,3340.4,1.279594]